[Event "8th Mersin Open 2024"]
[Site "Mersin"]
[Date "2024.11.11"]
[Round "3"]
[White "Herdem, Talha"]
[Black "Damya, Aydin"]
[Result "1-0"]
[ECO "B23"]
[WhiteElo "1884"]
[BlackElo "1798"]
[Annotator "NA RC"]
[PlyCount "31"]
[EventDate "2024.11.10"]
[EventType "swiss"]
[EventCountry "TUR"]
[SourceTitle "playchess.com"]
[Source "ChessBase"]
[SourceQuality "1"]
[TimeControl "5400+30"]

1. e4 {[%emt 0:01:00]} c5 {[%emt 0:02:00]} 2. Nc3 {[%emt 0:00:00]} e6 {[%emt 0:00:30]} 3. d4 {[%emt 0:00:00]} cxd4 {[%emt 0:00:30]} 4. Qxd4 {[%emt 0:00:30]} Nc6 {[%emt 0:00:00]} 5. Qd3 {[%emt 0:00:00]} Nf6 {[%emt 0:01:00]} 6. Bf4 {[%emt 0:00:00]} d5 {[%emt 0:14:30]} 7. O-O-O {[%emt 0:01:30]} d4 {[%emt 0:01:30]} 8. Nb5 {[%emt 0:00:30]} e5 {[%emt 0:01:30]} 9. Bxe5 {[%emt 0:01:30]} Nxe5 {[%emt 0:06:30]} 10. Qg3 {[%emt 0:00:00]} Nfd7 {[%emt 0:16:30]} 11. Nf3 {[%emt 0:00:00]} f6 $16 {[%emt 0:07:30]} (11... a6 $1 $11 12. Nxe5 axb5 13. Bxb5 Rxa2) 12. Nfxd4 {[%emt 0:06:30]} Kf7 {[%emt 0:08:30]} 13. Qb3+ {[%emt 0:07:30]} Kg6 {[%emt 0:05:30]} 14. Ne6 {[%emt 0:04:30]} Qb6 {[%emt 0:07:30]} 15. Nf4+ {[%emt 0:00:30]} Kh6 {[%emt 0:00:00]} 16. Qh3+ {[%emt 0:00:30]} 1-0

[Event "8th Mersin Open 2024"]
[Site "Mersin"]
[Date "2024.11.11"]
[Round "3"]
[White "Karaalioglu, Zeynel Mansur"]
[Black "Ercan, Mehmet Fahri"]
[Result "1-0"]
[ECO "B30"]
[WhiteElo "1875"]
[BlackElo "1788"]
[Annotator "NA COMBH"]
[PlyCount "98"]
[EventDate "2024.11.10"]
[EventType "swiss"]
[EventCountry "TUR"]
[SourceTitle "playchess.com"]
[Source "ChessBase"]
[SourceQuality "1"]
[TimeControl "5400+30"]

1. e4 {[%emt 0:05:00]} c5 {[%emt 0:03:00]} 2. Nf3 {[%emt 0:00:30]} Nc6 {[%emt 0:00:30]} 3. Bb5 {[%emt 0:00:30]} Nd4 {[%emt 0:06:30]} 4. Nxd4 {[%emt 0:00:30]} cxd4 {[%emt 0:00:30]} 5. O-O {[%emt 0:00:00]} a6 {[%emt 0:00:00]} 6. Bc4 {[%emt 0:00:00]} b5 {[%emt 0:02:00]} 7. Bb3 {[%emt 0:00:30]} Bb7 {[%emt 0:01:30]} 8. Re1 {[%emt 0:00:30]} e5 {[%emt 0:06:30]} 9. d3 {[%emt 0:00:30]} Nf6 {[%emt 0:00:30]} 10. f4 {[%emt 0:00:30]} d6 {[%emt 0:01:30]} 11. Qf3 {[%emt 0:02:30]} Be7 {[%emt 0:01:30]} 12. f5 {[%emt 0:00:30]} O-O {[%emt 0:02:30]} 13. g4 {[%emt 0:00:30]} Nd7 {[%emt 0:01:30]} 14. a3 {[%emt 0:03:30]} Bg5 $11 {[%emt 0:12:30]} (14... Nc5 $5 15. Ba2 $8 Rc8 $15) 15. Nd2 {[%emt 0:06:30]} Be3+ {[%emt 0:01:30]} 16. Kg2 {[%emt 0:00:30]} Qg5 {[%emt 0:12:30]} 17. Nf1 {[%emt 0:00:30]} Bxc1 {[%emt 0:01:30]} 18. Raxc1 {[%emt 0:00:30]} Nf6 {[%emt 0:08:30]} 19. h3 {[%emt 0:00:30]} h5 {[%emt 0:01:30]} 20. Nh2 {[%emt 0:00:30]} Rad8 {[%emt 0:04:30]} 21. Qg3 {[%emt 0:01:30]} hxg4 {[%emt 0:00:30]} 22. hxg4 {[%emt 0:01:30]} Rfe8 {[%emt 0:06:30]} 23. Kh3 {[%emt 0:03:30]} Qh6+ {[%emt 0:04:30]} 24. Qh4 {[%emt 0:00:30]} Qxh4+ {[%emt 0:00:30]} 25. Kxh4 {[%emt 0:00:30]} d5 {[%emt 0:00:30]} 26. g5 {[%emt 0:00:00]} Nh7 {[%emt 0:00:30]} 27. Ng4 {[%emt 0:00:00]} f6 {[%emt 0:01:26]} 28. gxf6 {[%emt 0:01:30]} gxf6 {[%emt 0:00:37]} 29. Rg1 {[%emt 0:00:30]} Kf8 {[%emt 0:01:24]} 30. Kh5 {[%emt 0:03:30]} Ke7 {[%emt 0:01:16]} 31. Nh6 {[%emt 0:03:30]} Ng5 {[%emt 0:00:42]} 32. exd5 {[%emt 0:00:30]} Bxd5 {[%emt 0:07:01]} 33. Bxd5 {[%emt 0:01:30]} Rxd5 {[%emt 0:00:30]} 34. Rxg5 {[%emt 0:00:30]} fxg5 {[%emt 0:00:30]} 35. Kxg5 {[%emt 0:00:30]} Rd6 {[%emt 0:00:30]} 36. Re1 {[%emt 0:00:30]} Rd5 {[%emt 0:00:30]} 37. f6+ {[%emt 0:00:30]} Ke6 {[%emt 0:00:30]} 38. f7 {[%emt 0:00:30]} Rf8 {[%emt 0:00:30]} 39. Kg6 {[%emt 0:00:30]} Rd7 {[%emt 0:00:30]} 40. Rf1 {[%emt 0:00:30]} Rc7 {[%emt 0:00:30]} 41. Kg7 {[%emt 0:00:30]} Rfc8 {[%emt 0:00:30]} 42. Rf6+ {[%emt 0:00:30]} Kd5 {[%emt 0:00:30]} 43. Nf5 {[%emt 0:00:30]} e4 {[%emt 0:00:30]} 44. dxe4+ {[%emt 0:00:30]} Ke5 {[%emt 0:00:30]} 45. Nd6 {[%emt 0:00:30]} Rd8 {[%emt 0:09:57]} 46. Kg6 {[%emt 0:03:30]} Rf8 {[%emt 0:00:12]} 47. Nf5 {[%emt 0:02:30]} Rxc2 {[%emt 0:00:48]} 48. Kg7 {[%emt 0:00:30]} Rcc8 {[%emt 0:00:34]} 49. Ne7 {[%emt 0:01:30]} Kxe4 {[%emt 0:01:33]} 1-0

[Event "8th Mersin Open 2024"]
[Site "Mersin"]
[Date "2024.11.11"]
[Round "3"]
[White "Ulu, Yusuf Ihsan"]
[Black "Yigit, Ahmet Yasir"]
[Result "1/2-1/2"]
[ECO "D94"]
[WhiteElo "1853"]
[BlackElo "1927"]
[Annotator "NA RC"]
[PlyCount "185"]
[EventDate "2024.11.10"]
[EventType "swiss"]
[EventCountry "TUR"]
[SourceTitle "playchess.com"]
[Source "ChessBase"]
[SourceQuality "1"]
[TimeControl "5400+30"]

1. d4 {[%emt 0:02:00]} Nf6 {[%emt 0:01:00]} 2. Nf3 {[%emt 0:00:30]} c5 {[%emt 0:00:30]} 3. e3 {[%emt 0:02:30]} g6 {[%emt 0:00:30]} 4. c4 {[%emt 0:01:30]} cxd4 {[%emt 0:01:30]} 5. exd4 {[%emt 0:00:30]} Bg7 {[%emt 0:00:00]} 6. Nc3 {[%emt 0:02:30]} O-O {[%emt 0:00:00]} 7. Be2 {[%emt 0:00:30]} d5 {[%emt 0:00:30]} 8. O-O {[%emt 0:05:30]} Nc6 {[%emt 0:00:30]} 9. h3 {[%emt 0:03:30]} b6 {[%emt 0:05:30]} 10. Be3 {[%emt 0:06:30]} dxc4 {[%emt 0:00:30]} 11. Bxc4 {[%emt 0:00:30]} Bb7 {[%emt 0:00:30]} 12. Qe2 {[%emt 0:04:30]} Nb4 {[%emt 0:01:30]} 13. a3 {[%emt 0:13:30]} Nbd5 $11 {[%emt 0:00:30]} 14. Nxd5 {[%emt 0:12:30]} Bxd5 {[%emt 0:00:30]} 15. Rac1 {[%emt 0:02:30]} Qd6 {[%emt 0:06:30]} 16. Ne5 {[%emt 0:02:30]} Rac8 {[%emt 0:00:30]} 17. Ba6 {[%emt 0:07:30]} Rxc1 {[%emt 0:00:30]} 18. Rxc1 {[%emt 0:00:00]} Ba8 {[%emt 0:01:30]} 19. Nc4 {[%emt 0:20:21]} Qc6 {[%emt 0:02:30]} 20. Qf3 {[%emt 0:01:26]} Qxf3 {[%emt 0:03:30]} 21. gxf3 {[%emt 0:00:02]} Nd5 {[%emt 0:00:00]} 22. Nd2 {[%emt 0:00:42]} Rd8 {[%emt 0:02:00]} 23. Bc4 {[%emt 0:04:17]} Rc8 {[%emt 0:07:30]} 24. Nb3 {[%emt 0:02:54]} e6 {[%emt 0:00:30]} 25. Be2 {[%emt 0:02:51]} Rxc1+ {[%emt 0:00:30]} 26. Nxc1 {[%emt 0:01:07]} Ne7 {[%emt 0:00:30]} 27. Nb3 {[%emt 0:00:47]} Nf5 {[%emt 0:00:00]} 28. Kg2 {[%emt 0:00:51]} Bd5 {[%emt 0:00:00]} 29. Bd1 {[%emt 0:00:07]} Bxb3 {[%emt 0:04:30]} 30. Bxb3 {[%emt 0:00:30]} Bxd4 {[%emt 0:00:30]} 31. Bc1 {[%emt 0:00:00]} Kg7 {[%emt 0:00:30]} 32. Bc2 {[%emt 0:00:15]} Kf6 {[%emt 0:00:30]} 33. Kf1 {[%emt 0:00:00]} g5 {[%emt 0:02:30]} 34. Ke2 {[%emt 0:00:00]} Be5 {[%emt 0:01:30]} 35. Bd1 {[%emt 0:01:27]} Bf4 {[%emt 0:04:30]} 36. Be3 {[%emt 0:00:36]} Ke5 {[%emt 0:02:30]} 37. Kd3 {[%emt 0:00:56]} h5 {[%emt 0:00:30]} 38. b3 {[%emt 0:00:36]} h4 {[%emt 0:01:30]} 39. b4 {[%emt 0:00:30]} Bxe3 {[%emt 0:00:30]} 40. fxe3 {[%emt 0:00:30]} Nd6 {[%emt 0:00:30]} 41. a4 {[%emt 0:00:59]} f5 {[%emt 0:00:30]} 42. Be2 {[%emt 0:00:36]} a5 {[%emt 0:00:30]} 43. bxa5 {[%emt 0:00:36]} bxa5 {[%emt 0:00:00]} 44. Bd1 {[%emt 0:00:00]} Kd5 {[%emt 0:02:00]} 45. Bb3+ {[%emt 0:00:29]} Ke5 {[%emt 0:00:30]} 46. Bd1 {[%emt 0:00:30]} Ne8 {[%emt 0:00:30]} 47. Kc4 {[%emt 0:00:30]} Nc7 {[%emt 0:00:30]} 48. Kd3 {[%emt 0:00:34]} Kd5 {[%emt 0:00:30]} 49. e4+ {[%emt 0:00:29]} fxe4+ {[%emt 0:00:30]} 50. fxe4+ {[%emt 0:00:30]} Ke5 {[%emt 0:00:30]} 51. Ke3 {[%emt 0:00:30]} Na6 {[%emt 0:00:30]} 52. Bb3 {[%emt 0:00:30]} Nc5 {[%emt 0:00:30]} 53. Bc2 {[%emt 0:00:30]} Nd7 {[%emt 0:00:30]} 54. Bd1 {[%emt 0:00:21]} Nc5 {[%emt 0:05:30]} 55. Bc2 {[%emt 0:00:30]} g4 {[%emt 0:00:30]} 56. hxg4 {[%emt 0:00:30]} h3 {[%emt 0:00:30]} 57. Kf3 {[%emt 0:01:00]} h2 {[%emt 0:00:30]} 58. Kg2 {[%emt 0:00:30]} Kf4 {[%emt 0:00:00]} 59. Kxh2 {[%emt 0:00:25]} Kxg4 {[%emt 0:00:00]} 60. Kg2 {[%emt 0:00:41]} Kf4 {[%emt 0:00:00]} 61. Kf2 {[%emt 0:00:00]} e5 {[%emt 0:01:00]} 62. Ke2 {[%emt 0:00:11]} Nxe4 {[%emt 0:00:00]} 63. Kd3 {[%emt 0:00:42]} Nd6 {[%emt 0:00:00]} 64. Ke2 {[%emt 0:00:41]} e4 {[%emt 0:00:00]} 65. Kf2 {[%emt 0:00:30]} Nf5 {[%emt 0:01:00]} 66. Bb3 {[%emt 0:00:30]} e3+ {[%emt 0:07:30]} 67. Ke1 {[%emt 0:00:35]} Nd4 {[%emt 0:00:30]} 68. Bd5 {[%emt 0:00:24]} Ke5 {[%emt 0:00:30]} 69. Bh1 {[%emt 0:00:30]} Kd6 {[%emt 0:00:30]} 70. Be4 {[%emt 0:00:30]} Kc5 {[%emt 0:00:30]} 71. Bg6 {[%emt 0:00:30]} Kb4 {[%emt 0:00:30]} 72. Be8 {[%emt 0:00:30]} Kb3 {[%emt 0:00:30]} 73. Kd1 {[%emt 0:00:30]} Kc3 {[%emt 0:00:00]} 74. Ke1 {[%emt 0:00:30]} Nb3 {[%emt 0:00:00]} 75. Ke2 {[%emt 0:00:30]} Kd4 {[%emt 0:00:30]} 76. Bb5 {[%emt 0:00:30]} Nc5 {[%emt 0:00:30]} 77. Ke1 {[%emt 0:00:30]} Ne4 {[%emt 0:00:30]} 78. Bc6 {[%emt 0:00:30]} Nc3 {[%emt 0:00:30]} 79. Be8 {[%emt 0:00:30]} Kc4 {[%emt 0:00:30]} 80. Kf1 {[%emt 0:00:30]} Kb3 {[%emt 0:00:30]} 81. Ke1 {[%emt 0:00:31]} Kb4 {[%emt 0:02:30]} 82. Kf1 {[%emt 0:00:23]} Kc4 {[%emt 0:01:30]} 83. Ke1 {[%emt 0:00:21]} Kd4 {[%emt 0:00:30]} 84. Bd7 {[%emt 0:00:41]} Ke4 {[%emt 0:00:30]} 85. Be8 {[%emt 0:00:30]} Kf4 {[%emt 0:04:30]} 86. Bc6 {[%emt 0:00:35]} Ke5 {[%emt 0:02:30]} 87. Be8 {[%emt 0:00:09]} Ne4 {[%emt 0:00:30]} 88. Bc6 {[%emt 0:00:30]} Kd4 {[%emt 0:00:30]} 89. Kd1 {[%emt 0:00:30]} Kc3 {[%emt 0:00:30]} 90. Ke2 {[%emt 0:00:30]} Kb3 {[%emt 0:00:30]} 91. Ke1 {[%emt 0:00:30]} Ng3 {[%emt 0:00:30]} 92. Bd7 {[%emt 0:00:30]} e2 {[%emt 0:00:30]} 93. Kd2 {[%emt 0:00:00]} 1/2-1/2

[Event "8th Mersin Open 2024"]
[Site "Mersin"]
[Date "2024.11.11"]
[Round "3"]
[White "Saygin, Semir"]
[Black "Kilic, Cihan"]
[Result "0-1"]
[ECO "B15"]
[WhiteElo "1826"]
[BlackElo "1894"]
[Annotator "NA"]
[PlyCount "62"]
[EventDate "2024.11.10"]
[EventType "swiss"]
[EventCountry "TUR"]
[SourceTitle "playchess.com"]
[Source "ChessBase"]
[SourceQuality "1"]
[TimeControl "5400+30"]

1. e4 {[%emt 0:01:00]} c6 {[%emt 0:01:00]} 2. d4 {[%emt 0:00:30]} d5 {[%emt 0:00:30]} 3. Nc3 {[%emt 0:00:00]} dxe4 {[%emt 0:00:30]} 4. Nxe4 {[%emt 0:00:00]} Nf6 {[%emt 0:00:30]} 5. Ng3 {[%emt 0:00:30]} h5 {[%emt 0:00:30]} 6. Bc4 {[%emt 0:05:30]} h4 {[%emt 0:02:30]} 7. N3e2 {[%emt 0:00:30]} Bf5 {[%emt 0:04:30]} 8. Nf3 {[%emt 0:05:30]} e6 {[%emt 0:04:30]} 9. h3 {[%emt 0:00:00]} Be7 {[%emt 0:00:30]} ({Black should try} 9... Be4 $11) 10. Nc3 {[%emt 0:05:00]} Nbd7 {[%emt 0:02:30]} (10... c5 $11) 11. Bd3 {[%emt 0:02:30]} g6 {[%emt 0:05:30]} 12. Bxf5 {[%emt 0:06:30]} gxf5 {[%emt 0:01:30]} 13. Be3 {[%emt 0:02:30]} Nb6 {[%emt 0:02:30]} 14. Qd3 {[%emt 0:03:30]} Nbd5 {[%emt 0:02:30]} 15. Nxd5 {[%emt 0:01:30]} Qxd5 $11 {[%emt 0:01:30]} 16. Qb3 {[%emt 0:03:30]} O-O-O {[%emt 0:06:30]} 17. c4 {[%emt 0:02:30]} Qa5+ {[%emt 0:02:30]} 18. Bd2 {[%emt 0:00:30]} Qa6 {[%emt 0:02:30]} 19. Bg5 {[%emt 0:06:30]} Qa5+ {[%emt 0:03:30]} 20. Bd2 {[%emt 0:06:30]} Qc7 {[%emt 0:00:30]} 21. Qa4 {[%emt 0:02:30]} Ne4 {[%emt 0:09:30]} 22. Bc3 {[%emt 0:08:30]} Rhg8 {[%emt 0:05:30]} 23. Kf1 {[%emt 0:08:30]} Qf4 {[%emt 0:09:30]} 24. Rg1 {[%emt 0:00:30]} Rxg2 {[%emt 0:11:30]} 25. Rxg2 {[%emt 0:03:30]} Qxf3 {[%emt 0:01:06]} 26. Qd1 {[%emt 0:03:30]} Qxh3 {[%emt 0:01:18]} 27. Kg1 {[%emt 0:00:00]} Bd6 {[%emt 0:01:05]} 28. Qe2 {[%emt 0:00:00]} Ng5 {[%emt 0:01:30]} 29. f4 {[%emt 0:05:23]} Bxf4 {[%emt 0:00:28]} 30. Rf1 {[%emt 0:04:52]} Be3+ {[%emt 0:00:21]} 31. Rff2 {[%emt 0:00:01]} Nf3+ {[%emt 0:00:30]} 0-1

[Event "8th Mersin Open 2024"]
[Site "Mersin"]
[Date "2024.11.11"]
[Round "3"]
[White "Inciroglu, Emir Cihangir"]
[Black "Kurdas, Halil Ibrahim"]
[Result "1-0"]
[ECO "B23"]
[WhiteElo "1811"]
[BlackElo "1887"]
[Annotator "NA"]
[PlyCount "79"]
[EventDate "2024.11.10"]
[EventType "swiss"]
[EventCountry "TUR"]
[SourceTitle "playchess.com"]
[Source "ChessBase"]
[SourceQuality "1"]
[TimeControl "5400+30"]

1. e4 {[%emt 0:01:00]} c5 {[%emt 0:01:00]} 2. Nc3 {[%emt 0:00:00]} e6 {[%emt 0:00:30]} 3. Nge2 {[%emt 0:00:00]} Nc6 {[%emt 0:00:30]} 4. g3 {[%emt 0:00:00]} Nf6 {[%emt 0:00:30]} 5. Bg2 {[%emt 0:00:00]} a6 {[%emt 0:01:30]} 6. a4 {[%emt 0:04:30] B23: Closed Sicilian: Lines without g3.} Qc7 {[%emt 0:00:30]} 7. d3 {[%emt 0:00:30]} Rb8 {[%emt 0:01:30]} 8. f4 {[%emt 0:00:30]} d6 {[%emt 0:00:30]} 9. h3 {[%emt 0:00:30]} h5 {[%emt 0:00:30]} 10. Be3 {[%emt 0:02:30]} Be7 {[%emt 0:00:30]} 11. Qd2 {[%emt 0:00:00]} b5 {[%emt 0:01:30]} 12. axb5 {[%emt 0:01:00]} axb5 {[%emt 0:00:30]} 13. b3 {[%emt 0:05:30]} b4 {[%emt 0:02:30]} 14. Nd1 {[%emt 0:01:30]} d5 {[%emt 0:02:30]} 15. exd5 {[%emt 0:01:30]} Nxd5 {[%emt 0:04:30]} 16. Bf2 {[%emt 0:00:30]} Bf6 {[%emt 0:01:30]} 17. Ra2 {[%emt 0:02:30]} Nd4 {[%emt 0:02:30]} 18. O-O {[%emt 0:02:30]} h4 {[%emt 0:02:30]} 19. Nxd4 {[%emt 0:00:30]} cxd4 {[%emt 0:00:30]} 20. Bxd5 {[%emt 0:00:30]} exd5 {[%emt 0:00:30]} 21. Re1+ {[%emt 0:00:00]} Kf8 {[%emt 0:00:30]} 22. g4 {[%emt 0:00:00]} g6 $11 {[%emt 0:02:30]} 23. Kg2 {[%emt 0:07:30]} Bd7 {[%emt 0:06:30]} 24. Bg1 {[%emt 0:01:30]} Qc8 {[%emt 0:08:30]} 25. Nf2 {[%emt 0:00:30]} Kg7 {[%emt 0:00:30]} 26. Bh2 {[%emt 0:08:30]} Rb6 {[%emt 0:06:30]} 27. g5 {[%emt 0:00:30]} Bd8 {[%emt 0:00:30]} 28. f5 {[%emt 0:00:00]} Bxf5 {[%emt 0:03:30]} 29. Be5+ {[%emt 0:00:00]} f6 {[%emt 0:00:30]} 30. Bxd4 {[%emt 0:00:30]} Bxh3+ {[%emt 0:00:00]} 31. Kg1 {[%emt 0:00:30]} Rb7 {[%emt 0:07:00]} 32. Ra6 {[%emt 0:03:30]} Rh5 {[%emt 0:04:30]} 33. Qe3 {[%emt 0:11:30]} Bf5 {[%emt 0:05:30]} 34. gxf6+ {[%emt 0:00:30]} Kh7 {[%emt 0:00:30]} 35. f7 {[%emt 0:01:30]} Rg5+ {[%emt 0:12:30]} 36. Kh1 {[%emt 0:00:30]} Be7 {[%emt 0:00:30]} 37. Qxe7 {[%emt 0:04:30]} Rxe7 {[%emt 0:10:41]} 38. Rxe7 {[%emt 0:00:30]} Be4+ {[%emt 0:05:29]} 39. dxe4 {[%emt 0:00:30]} Kh6 {[%emt 0:01:24]} 40. Re8 {[%emt 0:00:00]} 1-0

[Event "8th Mersin Open 2024"]
[Site "Mersin"]
[Date "2024.11.11"]
[Round "3"]
[White "Keloglu, Ismail Cinar"]
[Black "Icoz, Cinar"]
[Result "1/2-1/2"]
[ECO "B25"]
[WhiteElo "1805"]
[BlackElo "1882"]
[Annotator "NA RC"]
[PlyCount "60"]
[EventDate "2024.11.10"]
[EventType "swiss"]
[EventCountry "TUR"]
[SourceTitle "playchess.com"]
[Source "ChessBase"]
[SourceQuality "1"]
[TimeControl "5400+30"]

1. e4 {[%emt 0:06:00]} c5 {[%emt 0:02:00]} 2. Nc3 {[%emt 0:00:30]} Nc6 {[%emt 0:00:00]} 3. g3 {[%emt 0:00:00]} g6 {[%emt 0:01:00]} 4. Bg2 {[%emt 0:00:00]} Bg7 {[%emt 0:00:30]} 5. d3 {[%emt 0:00:00]} d6 {[%emt 0:00:30]} 6. f4 {[%emt 0:00:00]} e6 {[%emt 0:00:30]} 7. Nf3 {[%emt 0:00:30]} Nge7 {[%emt 0:01:30]} 8. O-O {[%emt 0:00:00]} O-O {[%emt 0:01:30]} 9. g4 {[%emt 0:02:00]} f5 {[%emt 0:02:30]} 10. h3 {[%emt 0:00:30]} Nd4 {[%emt 0:04:30]} 11. Ne2 {[%emt 0:01:30]} Nxf3+ {[%emt 0:05:30]} 12. Bxf3 {[%emt 0:00:30]} Rb8 {[%emt 0:00:00]} 13. Ng3 {[%emt 0:03:30]} d5 {[%emt 0:10:00]} 14. c3 $11 {[%emt 0:08:30]} b6 {[%emt 0:12:30]} 15. Re1 {[%emt 0:05:30]} Bb7 {[%emt 0:01:30]} 16. e5 {[%emt 0:01:30]} d4 {[%emt 0:01:30]} 17. c4 {[%emt 0:00:30]} Bxf3 {[%emt 0:00:30]} 18. Qxf3 {[%emt 0:00:00]} b5 {[%emt 0:00:30]} 19. g5 {[%emt 0:09:00]} bxc4 {[%emt 0:05:30]} 20. dxc4 {[%emt 0:00:00]} Qd7 {[%emt 0:00:30]} 21. Nh1 {[%emt 0:01:00]} Nc6 {[%emt 0:00:30]} 22. Rd1 {[%emt 0:07:30]} Rfd8 {[%emt 0:06:30]} 23. Nf2 {[%emt 0:00:00]} Na5 {[%emt 0:10:30]} 24. b3 {[%emt 0:01:00]} Nb7 {[%emt 0:01:30]} 25. Nd3 {[%emt 0:00:30]} a5 {[%emt 0:04:30]} 26. a3 {[%emt 0:00:30]} Bf8 {[%emt 0:01:30]} 27. Bd2 {[%emt 0:00:30]} Rbc8 {[%emt 0:01:30]} 28. Rdc1 {[%emt 0:00:30]} Qc6 {[%emt 0:07:26]} 29. Qxc6 {[%emt 0:01:30]} Rxc6 {[%emt 0:00:30]} 30. b4 {[%emt 0:00:30]} a4 {[%emt 0:00:30]} 1/2-1/2

[Event "8th Mersin Open 2024"]
[Site "Mersin"]
[Date "2024.11.11"]
[Round "3"]
[White "Kocacik, Dogukan"]
[Black "Yagublu, Azad"]
[Result "1-0"]
[ECO "B90"]
[WhiteElo "1586"]
[BlackElo "1458"]
[Annotator "NA RC"]
[PlyCount "55"]
[EventDate "2024.11.10"]
[EventType "swiss"]
[EventCountry "TUR"]
[SourceTitle "playchess.com"]
[Source "ChessBase"]
[SourceQuality "1"]
[TimeControl "5400+30"]

1. e4 {[%emt 0:01:00]} c5 {[%emt 0:01:00]} 2. Nf3 {[%emt 0:00:30]} d6 {[%emt 0:00:00]} 3. d4 {[%emt 0:00:00]} cxd4 {[%emt 0:00:00]} 4. Nxd4 {[%emt 0:00:00]} Nf6 {[%emt 0:00:30]} 5. Nc3 {[%emt 0:00:00]} a6 {[%emt 0:00:00]} 6. f3 {[%emt 0:00:00]} e5 {[%emt 0:00:00]} 7. Nb3 {[%emt 0:00:30]} Be6 {[%emt 0:00:00]} 8. Bg5 {[%emt 0:00:30]} Be7 {[%emt 0:00:00]} 9. Qd2 {[%emt 0:01:30]} Nc6 {[%emt 0:00:30]} 10. O-O-O {[%emt 0:00:00]} h6 {[%emt 0:01:30]} 11. Bxf6 {[%emt 0:00:00]} gxf6 {[%emt 0:00:30]} 12. Nd5 {[%emt 0:03:30]} Bxd5 {[%emt 0:00:30]} 13. Qxd5 {[%emt 0:06:30]} Qc7 {[%emt 0:02:30]} 14. Bc4 {[%emt 0:04:30]} O-O-O {[%emt 0:00:30]} 15. Qxf7 {[%emt 0:01:30]} Kb8 {[%emt 0:00:30]} 16. a3 {[%emt 0:01:30]} Rc8 {[%emt 0:03:30]} 17. Bd3 {[%emt 0:03:30]} Rhg8 {[%emt 0:02:30]} 18. Rd2 {[%emt 0:05:30]} f5 {[%emt 0:00:00]} 19. Kb1 {[%emt 0:00:00]} fxe4 {[%emt 0:00:00]} 20. Bxe4 {[%emt 0:00:00]} Rcf8 {[%emt 0:01:30]} 21. Qe6 {[%emt 0:02:30]} Re8 {[%emt 0:01:30]} 22. Qd5 {[%emt 0:06:30]} Bg5 {[%emt 0:00:30]} 23. Rd3 {[%emt 0:01:30]} Be7 {[%emt 0:00:30]} 24. g3 {[%emt 0:01:30]} Qb6 {[%emt 0:04:30]} 25. Nd2 {[%emt 0:04:30]} Qb5 {[%emt 0:00:30]} 26. Rb3 {[%emt 0:00:30]} Qa4 {[%emt 0:00:30]} 27. Qxc6 {[%emt 0:00:30]} Qxb3 {[%emt 0:01:30]} 28. Qxe8+ 1-0

[Event "8th Mersin Open 2024"]
[Site "Mersin"]
[Date "2024.11.11"]
[Round "3"]
[White "Tawel, Ihab."]
[Black "Sahin, Mert"]
[Result "1-0"]
[ECO "C06"]
[WhiteElo "1584"]
[BlackElo "1534"]
[Annotator "NA RC"]
[PlyCount "107"]
[EventDate "2024.11.10"]
[EventType "swiss"]
[EventCountry "TUR"]
[SourceTitle "playchess.com"]
[Source "ChessBase"]
[SourceQuality "1"]
[TimeControl "5400+30"]

1. e4 {[%emt 0:07:00]} e6 {[%emt 0:01:00]} 2. d4 {[%emt 0:00:30]} d5 {[%emt 0:00:30]} 3. Nd2 {[%emt 0:00:30]} Nf6 {[%emt 0:00:00]} 4. e5 {[%emt 0:00:30]} Nfd7 {[%emt 0:00:00]} 5. Bd3 {[%emt 0:00:00]} c5 {[%emt 0:00:30]} 6. c3 {[%emt 0:00:00]} Nc6 {[%emt 0:00:00]} 7. Ne2 {[%emt 0:00:00]} Qb6 {[%emt 0:00:00]} 8. Nf3 {[%emt 0:02:00]} cxd4 {[%emt 0:00:00]} 9. cxd4 {[%emt 0:00:00]} f6 {[%emt 0:00:00]} 10. Nc3 {[%emt 0:01:00]} fxe5 {[%emt 0:01:30]} 11. dxe5 {[%emt 0:02:30]} Ndxe5 {[%emt 0:00:30]} 12. Nxe5 {[%emt 0:00:30]} Nxe5 {[%emt 0:00:00]} 13. Bb5+ {[%emt 0:04:30]} Bd7 {[%emt 0:01:00]} 14. Qe2 {[%emt 0:05:30]} Bxb5 {[%emt 0:05:30]} 15. Qxe5 {[%emt 0:00:30]} Kd7 {[%emt 0:00:30]} 16. Be3 {[%emt 0:03:30]} Qa6 {[%emt 0:02:30]} 17. Rd1 {[%emt 0:06:30]} Bc6 {[%emt 0:00:30]} 18. b4 {[%emt 0:02:30]} Bxb4 {[%emt 0:03:30]} 19. Qxg7+ {[%emt 0:00:30]} Be7 {[%emt 0:00:30]} 20. Bg5 {[%emt 0:02:30]} Rhe8 {[%emt 0:01:30]} 21. Ne4 {[%emt 0:03:30]} Kd8 {[%emt 0:01:30]} 22. Nd6 {[%emt 0:03:30]} Bxg5 {[%emt 0:01:30]} 23. Nf7+ {[%emt 0:08:30]} Kc8 {[%emt 0:00:30]} 24. Nd6+ {[%emt 0:00:30]} Kd8 {[%emt 0:00:30]} 25. Nf7+ {[%emt 0:00:30]} Kc8 {[%emt 0:00:30]} 26. Nd6+ {[%emt 0:03:30]} Kd8 {[%emt 0:00:30]} 27. Nxe8 {[%emt 0:01:30]} Qa5+ {[%emt 0:00:30]} 28. Kf1 {[%emt 0:00:30]} Qb5+ {[%emt 0:00:30]} 29. Kg1 {[%emt 0:00:30]} Be7 {[%emt 0:00:30]} 30. Nc7 {[%emt 0:00:30]} Qe2 {[%emt 0:00:00]} 31. Rc1 {[%emt 0:29:41]} Rc8 {[%emt 0:01:00]} 32. Nxd5 {[%emt 0:00:51]} Bc5 {[%emt 0:00:30]} 33. Qg5+ {[%emt 0:01:04]} Ke8 {[%emt 0:01:30]} 34. Nf6+ {[%emt 0:03:42]} Kf7 {[%emt 0:00:30]} 35. Qxc5 {[%emt 0:00:03]} Kxf6 {[%emt 0:00:30]} 36. Qc3+ {[%emt 0:04:04]} Kf7 {[%emt 0:00:30]} 37. Qc2 {[%emt 0:00:02]} Qh5 {[%emt 0:00:30]} 38. h3 {[%emt 0:02:13]} Rg8 {[%emt 0:00:00]} 39. f3 {[%emt 0:02:01]} Qh6 {[%emt 0:00:00]} 40. Qc3 {[%emt 0:01:15]} Qg5 {[%emt 0:01:30]} 41. Rc2 {[%emt 0:00:42]} Qf4 {[%emt 0:00:30]} 42. Rf2 {[%emt 0:00:58]} Rc8 {[%emt 0:00:30]} 43. Qd2 {[%emt 0:00:13]} Qf5 {[%emt 0:00:30]} 44. Qc2 {[%emt 0:00:16]} Qh5 {[%emt 0:00:30]} 45. g4 {[%emt 0:00:37]} Qh4 {[%emt 0:00:30]} 46. Qd2 {[%emt 0:00:15]} Rd8 {[%emt 0:00:30]} 47. Qf4+ {[%emt 0:00:30]} Kg8 {[%emt 0:00:00]} 48. Kg2 {[%emt 0:00:24]} Rf8 {[%emt 0:00:00]} 49. Qe5 {[%emt 0:00:28]} Rf6 {[%emt 0:00:30]} 50. Rd1 {[%emt 0:01:09]} Rg6 {[%emt 0:00:30]} 51. Rfd2 {[%emt 0:00:20]} h5 {[%emt 0:01:30]} 52. Rd8+ {[%emt 0:00:30]} Kf7 {[%emt 0:00:30]} 53. Qc7+ {[%emt 0:00:43]} Qe7 {[%emt 0:00:00]} 54. R8d7 {[%emt 0:00:00]} 1-0